Cogmind - Beta 12 @@@ ROGUE MODE // 2023.03.23 @ 18:40:44 Player: kawyua Result: Self-destructed Performance ------------- Evolutions (3) 1500 Regions Visited (12) 2400 Robots Destroyed (64) 320 Value Destroyed (2865) 2865 Prototype IDs (30) 600 Alien Tech Used (0) 0 Bonus (2363) 2363 TOTAL SCORE: 10048 Bonus ------- High Alert Combat Kills 112 Follower Combat Kills 1314 Entered Garrisons 200 Used RIF Installer 500 Aligned with FarCom 300 Friendly Fire -63 Cogmind --------- Core Integrity 671/700 Matter 300/300 Energy 310/310 System Corruption 2% Temperature Cool (0) Movement Treading (165) Location -7/Factory Parts ------- > --- POWER (1) -------- Fission Core > --- PROPULSION (3) --- Armored Medium Treads Heavy Treads > --- UTILITY (7) ------ High-capacity Storage Unit Advanced Weight Redist. System Improved Signal Interpreter Weapon Mount Advanced Transmission Jammer Improved Medium Armor Plating > --- WEAPON (2) ------- Heavy Battle Rifle Magnetic Acceleration Cannon > --- INVENTORY (20) --- Armored Medium Treads Heavy Treads Heavy Treads Nuclear Pulse Array Weapon Mount Hacking Suite Relay Coupler [NC] Army-in-a-Box (30/30) Advanced Plasma Cannon Heavy Machine Gun Mass Driver Mini Grenade Launcher Peak State ------------ > --- POWER ------------ Fission Core > --- PROPULSION ------- Armored Medium Treads Heavy Treads > --- UTILITY ---------- High-capacity Storage Unit Advanced Weight Redist. System Improved Signal Interpreter Active Sensor Suite Improved Medium Armor Plating > --- WEAPON ----------- Heavy Battle Rifle Magnetic Acceleration Cannon > --- INVENTORY -------- Heavy Treads Heavy Treads Cesium-ion Thruster Nuclear Pulse Array ECM Suite Hacking Suite Army-in-a-Box Mass Driver Mini Grenade Launcher [Rating: 80] Favorites ----------- Power Nuclear Core Engine Ion Engine Power Core Nuclear Core Propulsion Light Treads Treads Light Treads Leg Aluminum Leg Wheel Wheel Flight Unit Improved Flight Unit Utility High-capacity Storage Unit Device Structural Scanner Storage High-capacity Storage Unit Processor Signal Interpreter Hackware Relay Coupler [Sentry] Protection Improved Medium Armor Plating Weapon Autogun Energy Gun Small Laser Ballistic Gun Autogun Ballistic Cannon Magnetic Acceleration Cannon Launcher Grenade Launcher Special Weapon Plasma Cutter Impact Weapon Heavy Flail Slashing Weapon Axe Special Melee Weapon Datajack Build | -11 -10 -10 -9 -9 -9 -8 -8 -7 -7 -7 -7 -7 ------- Run | Jun Mat Min Mat Min Exi Min Mat Fac Was Fac Gar Fac Slots Evolved 6 | . . . 2 . . . 2 2 . . . . Power . | . . . . . . . . . . . . . Propulsion 1 | . . . 1 . . . . . . . . . Utility 5 | . . . 1 . . . 2 2 . . . . Weapon . | . . . . . . . . . . . . . Parts Attached 136 | 6 8 4 39 7 6 3 37 5 6 . 15 . Power 12 | 1 . . 5 . . . 4 1 1 . . . Engine 3 | 1 . . 2 . . . . . . . . . Core 9 | . . . 3 . . . 4 1 1 . . . Reactor . | . . . . . . . . . . . . . Propulsion 37 | 2 4 . 11 3 3 1 11 . 1 . 1 . Treads 17 | . 2 . 3 2 . . 8 . 1 . 1 . Leg 3 | 2 . . . . . 1 . . . . . . Wheel 15 | . 2 . 8 1 2 . 2 . . . . . Hover . | . . . . . . . . . . . . . Flight 2 | . . . . . 1 . 1 . . . . . Utility 43 | 1 3 3 7 1 3 1 11 3 1 . 9 . Device 20 | . 1 2 2 1 2 1 3 1 1 . 6 . Storage 8 | 1 1 . 1 . 1 . 4 . . . . . Processor 8 | . 1 1 3 . . . 2 . . . 1 . Hackware 2 | . . . . . . . . . . . 2 . Protection 5 | . . . 1 . . . 2 2 . . . . Artifact . | . . . . . . . . . . . . . Weapon 44 | 2 1 1 16 3 . 1 11 1 3 . 5 . Energy Gun 6 | 1 . . 4 . . . 1 . . . . . Energy Cannon . | . . . . . . . . . . . . . Ballistic Gun 26 | 1 1 . 8 2 . . 9 . 3 . 2 . Ballistic Cannon 4 | . . . 1 . . 1 . . . . 2 . Launcher 2 | . . 1 . 1 . . . . . . . . Special Weapon 2 | . . . 2 . . . . . . . . . Impact Weapon 1 | . . . . . . . 1 . . . . . Slashing Weapon 1 | . . . 1 . . . . . . . . . Piercing Weapon . | . . . . . . . . . . . . . Special Melee Weapon 2 | . . . . . . . . 1 . . 1 . Unidentified Prototypes 5 | . . . 2 . 1 . 1 . . . 1 . Parts Lost 25 | . 1 . 4 5 . 1 13 . . . 1 . Power 1 | . . . . . . . 1 . . . . . Propulsion 13 | . . . 3 3 . 1 6 . . . . . Utility 2 | . . . . . . . 2 . . . . . Weapon 9 | . 1 . 1 2 . . 4 . . . 1 . Highest Loss Streak 6 | . 1 . 2 5 . 1 6 . . . 1 . To Critical Strikes . | . . . . . . . . . . . . . Average Slot Usage (%) 96 | . 99 100 98 99 97 99 93 96 94 92 90 86 Engine 4 | . 14 14 2 . . . . . . . . . Core 6 | . . . 8 11 11 11 8 7 7 7 7 7 Treads 13 | . 19 28 2 6 11 11 12 23 17 15 15 15 Leg 1 | . . . . . . 10 3 . . . . . Wheel 11 | . 7 . 29 25 22 11 8 . . . . . Device 11 | . 4 8 3 8 8 11 14 21 23 30 27 23 Storage 11 | . 14 14 11 11 11 11 12 7 7 7 7 7 Processor 10 | . 8 5 17 13 11 11 12 7 7 7 8 7 Protection 2 | . . . . . . . 1 12 14 7 7 7 Energy Gun 2 | . 14 1 1 . . . 3 . . . . . Ballistic Gun 12 | . 13 14 12 18 22 11 10 8 12 15 6 7 Ballistic Cannon 2 | . . . . . . 11 1 . . . 7 7 Launcher 2 | . . 12 . 3 . . . . . . . . Special Weapon 1 | . . . 6 . . . . . . . . . Naked Turns . | . . . . . . . . . . . . . Heaviest Build 104 | 13 49 50 94 94 96 100 104 71 75 68 77 74 Greatest Support 106 | 20 40 40 40 38 26 10 66 66 101 101 106 106 Greatest Overweight (x) 34 | . 2 1 2 5 3 9 34 1 1 . . . Average Overweight (x) 2 | . 1 1 1 2 3 9 9 . . . . . Largest Inventory Capacity 25 | 8 20 20 25 25 25 25 25 20 20 20 20 20 Average Capacity 22 | 6 19 20 23 25 25 25 24 20 20 20 20 20 Most Carried 25 | 6 18 18 25 25 25 25 25 20 20 20 20 20 Average Carried 20 | 4 12 16 22 23 24 24 24 20 19 20 19 20 Final Capacity 25 | 8 20 20 25 25 25 25 20 20 20 20 20 20 Final Carried 25 | 6 18 16 25 24 24 24 20 20 20 20 20 20 Class Distribution -------------------- 70% | Mutant 12% | Scavenger-Mutant 6% | Infiltrator-Skirmisher 4% | Scavenger-Skirmisher 3% | Skirmisher Dominant Class ---------------- Mutant | -10/Materials Mutant | -10/Mines Mutant | -9/Materials Mutant | -9/Mines Mutant | -9/Exiles Scavenger-Mutant | -8/Mines Scavenger-Mutant | -8/Materials Infiltrator-Assassin | -7/Factory Infiltrator-Skirmisher | -7/Waste Infiltrator-Skirmisher | -7/Factory Mutant | -7/Garrison Mutant | -7/Factory Resources | -11 -10 -10 -9 -9 -9 -8 -8 -7 -7 -7 -7 -7 ----------- Run | Jun Mat Min Mat Min Exi Min Mat Fac Was Fac Gar Fac Matter Collected 3625 | 249 161 245 714 192 120 267 888 . 116 . 592 81 Remotely . | . . . . . . . . . . . . . Salvage Created 2072 | . 302 . 576 34 . 68 921 . . . 80 91 Parts 146 | . 16 . 46 6 . 4 68 . . . 2 4 Haulers Intercepted . | . . . . . . . . . . . . . Recyclers Shooed . | . . . . . . . . . . . . . Parts Field Recycled . | . . . . . . . . . . . . . Retrieved Matter . | . . . . . . . . . . . . . Parts Self-Destructed . | . . . . . . . . . . . . . Prevented . | . . . . . . . . . . . . . Kills | -11 -10 -10 -9 -9 -9 -8 -8 -7 -7 -7 -7 -7 ------- Run | Jun Mat Min Mat Min Exi Min Mat Fac Was Fac Gar Fac Combat Hostiles Destroyed 52 | . 10 . 10 4 . 1 23 . . . 2 2 Guns 47 | . 10 . 8 4 . 1 23 . . . . 1 Cannons 5 | . . . 2 . . . . . . . 2 1 Classes Destroyed 13 | . 3 . 3 1 . . 5 . . . . 1 Worker 5 | . . . 2 . . 1 2 . . . . . Tunneler 1 | . . . . . . . 1 . . . . . Recycler 1 | . . . . . . . 1 . . . . . Operator 2 | . . . 2 . . . . . . . . . Watcher 3 | . 1 . 2 . . . . . . . . . Swarmer 20 | . 6 . . 3 . . 11 . . . . . Grunt 15 | . 4 . 4 . . 1 3 . . . 2 1 Duelist 1 | . . . . . . . 1 . . . . . Protector 1 | . . . . . . . . . . . . 1 Sentry 10 | . . . 6 . . . 4 . . . . . Demolisher 1 | . . . . 1 . . . . . . . . Specialist 2 | . . . . . . . 2 . . . . . Hunter 2 | . . . . . . . 2 . . . . . Best Kill Streak 5 | . 3 . 3 3 . 1 5 . . . 1 2 Combat Bots Only 5 | . 3 . 3 3 . 1 5 . . . 1 2 Max Kills in Single Turn 2 | . 2 . 1 1 . 1 2 . . . 1 1 Gunslinging . | . . . . . . . . . . . . . Exploded . | . . . . . . . . . . . . . Melee . | . . . . . . . . . . . . . Uniques/NPCs Destroyed 1 | . . 1 . . . . . . . . . . YI-UF0 (-10/Mines) Combat | -11 -10 -10 -9 -9 -9 -8 -8 -7 -7 -7 -7 -7 -------- Run | Jun Mat Min Mat Min Exi Min Mat Fac Was Fac Gar Fac Damage Taken 4682 | . 436 78 786 677 . 265 1931 . . . 367 142 Core 890 | . 98 39 108 159 . 98 359 . . . 29 . Absorbed by Shields 246 | . . . . . . . 246 . . . . . Regen/Repaired (Parts) 59 | . . . . . . . . . 5 . 34 20 Core Remaining (%) 46 | 100 . 45 . . . 8 34 . . . . . Volleys Fired 277 | . 36 . 70 12 . 20 82 . 1 . 49 7 Largest 2 | . 2 . 2 2 . 2 2 . 2 . 2 2 Hottest 110 | . 60 . 100 53 . 80 84 . 66 . 110 86 Shots Fired 492 | . 66 . 114 23 1 29 157 . 2 . 86 14 Gun 377 | . 66 . 77 20 1 11 154 . 2 . 39 7 Cannon 85 | . . . 10 . . 18 3 . . . 47 7 Launcher 3 | . . . . 3 . . . . . . . . Special 27 | . . . 27 . . . . . . . . . Kinetic 381 | . 30 . 69 20 1 29 130 . 2 . 86 14 Thermal 108 | . 36 . 45 . . . 27 . . . . . Explosive 3 | . . . . 3 . . . . . . . . Electromagnetic . | . . . . . . . . . . . . . Robot Hit Streak 24 | . 13 . 19 6 . 5 24 . 1 . 5 6 Robot Miss Streak 3 | . 2 . 3 1 . 1 3 . 1 . 1 2 Penetration Max . | . . . . . . . . . . . . . Secondary Targets 5 | . . . 2 2 . . 1 . . . . . Max Gunslinging Chain 1 | . . . 1 1 . . 1 . . . . . Shots Hit Robots 287 | . 48 . 81 16 . 13 109 . 1 . 13 6 Core Hits 114 | . 20 . 33 7 . 3 44 . . . 4 3 Critical Kills 2 | . . . 1 . . 1 . . . . . . Critical Parts Destroyed 5 | . . . . . . 4 1 . . . . . Critical Strikes 13 | . . . 2 . . 5 6 . . . . . Burn 5 | . . . . . . . 5 . . . . . Destroy 7 | . . . 1 . . 5 1 . . . . . Sever 1 | . . . 1 . . . . . . . . . Melee Attacks 5 | . . . . . . . 1 . . . 4 . Impact 1 | . . . . . . . 1 . . . . . Slashing . | . . . . . . . . . . . . . Piercing . | . . . . . . . . . . . . . Sneak Attacks . | . . . . . . . . . . . . . Combat Hostiles . | . . . . . . . . . . . . . Follow-up Attacks . | . . . . . . . . . . . . . Damage Inflicted 4374 | . 585 . 1083 278 . 236 1725 . 24 . 293 150 Guns 3476 | . 585 . 734 203 . 116 1633 . 24 . 126 55 Cannons 570 | . . . 169 . . 120 19 . . . 167 95 Explosions 148 | . . . . 75 . . 73 . . . . . Melee . | . . . . . . . . . . . . . Ramming 4 | . . . 4 . . . . . . . . . Kinetic 3147 | . 288 . 673 203 . 236 1280 . 24 . 293 150 Thermal 1075 | . 297 . 406 . . . 372 . . . . . Explosive 148 | . . . . 75 . . 73 . . . . . Electromagnetic . | . . . . . . . . . . . . . Impact . | . . . . . . . . . . . . . Slashing . | . . . . . . . . . . . . . Piercing . | . . . . . . . . . . . . . Highest Corruption 7 | . . . 5 5 7 7 . . . . 2 2 Average Corruption 4 | . . . 5 5 6 7 . . . . 1 2 Corruption Purged . | . . . . . . . . . . . . . Corruption Blocked . | . . . . . . . . . . . . . Effects 189 | . . . 93 21 28 30 . . . . 16 1 Message Errors 45 | . . . 18 2 8 12 . . . . 5 . Matter Fused 41 | . . . 22 4 5 5 . . . . 5 . Heat Flow Errors 28 | . . . 15 4 3 5 . . . . 1 . Energy Discharges 24 | . . . 14 4 3 1 . . . . 2 . Parts Rejected 1 | . . . 1 . . . . . . . . . Data Loss (minor) 30 | . . . 10 5 8 5 . . . . 1 1 Data Loss (major) 9 | . . . 7 . . 1 . . . . 1 . Misfires 4 | . . . 3 . 1 . . . . . . . Alerts 4 | . . . 1 1 . 1 . . . . 1 . Weapon Failures 3 | . . . 2 1 . . . . . . . . Overload Shots . | . . . . . . . . . . . . . Overflow Damage 20 | . . . . . . . . . . . 1 19 Projectiles 20 | . . . . . . . . . . . 1 19 Explosions . | . . . . . . . . . . . . . Melee . | . . . . . . . . . . . . . Knockbacks 6 | . . . 2 . . 2 . . . . 2 . Impact . | . . . . . . . . . . . . . Kinetic 4 | . . . 1 . . 2 . . . . 1 . Secondary 2 | . . . 1 . . . . . . . 1 . Self-Inflicted Damage 2 | . . . 2 . . . . . . . . . Shots . | . . . . . . . . . . . . . Rammed 1 | . . . 1 . . . . . . . . . Targets Rammed 1 | . . . 1 . . . . . . . . . Kicked . | . . . . . . . . . . . . . Crushed . | . . . . . . . . . . . . . Highest Temperature 442 | . 48 . 279 196 198 251 442 . . . 276 93 Average Temperature 73 | . 22 . 96 61 85 74 119 . . . 24 38 Received Heat Transfer 1202 | . 162 . 366 . . 99 431 . . . 54 90 Effects 6 | . . . 2 . . . 4 . . . . . Shutdowns 1 | . . . . . . . 1 . . . . . Energy Bleed 3 | . . . 2 . . . 1 . . . . . Damage (major) 2 | . . . . . . . 2 . . . . . Siege Activations . | . . . . . . . . . . . . . Robots Corrupted . | . . . . . . . . . . . . . Combat Hostiles . | . . . . . . . . . . . . . Parts Fried . | . . . . . . . . . . . . . Impact Corruptions . | . . . . . . . . . . . . . Robots Melted . | . . . . . . . . . . . . . Combat Hostiles . | . . . . . . . . . . . . . Parts Melted 3 | . 1 . 1 . . . 1 . . . . . Heat Transferred 3020 | . 675 . 1161 . . . 1184 . . . . . Parts Sabotaged . | . . . . . . . . . . . . . Parts Stolen . | . . . . . . . . . . . . . Parts Stripped . | . . . . . . . . . . . . . Power Chain Reactions . | . . . . . . . . . . . . . Missiles Intercepted . | . . . . . . . . . . . . . Alert | -11 -10 -10 -9 -9 -9 -8 -8 -7 -7 -7 -7 -7 ------- Run | Jun Mat Min Mat Min Exi Min Mat Fac Was Fac Gar Fac Peak Influence 2401 | . 136 5 176 70 . 44 408 9 41 . 2401 1387 Initial 1260 | . . 5 . 4 . . . 9 3 . . 1260 Average 281 | . 51 . 37 22 . 12 105 9 30 . 1541 1284 Maximum Alert Level 5 | . . . . . . . 2 . . . 5 4 Low Security (%) 79 | 100 100 100 100 100 . 100 74 100 100 100 3 . Level 1 3 | . . . . . . . 25 . . . 1 . Level 2 . | . . . . . . . . . . . 4 . Level 3 1 | . . . . . . . . . . . 14 . Level 4 6 | . . . . . . . . . . . 22 100 Level 5 7 | . . . . . . . . . . . 53 . High Security . | . . . . . . . . . . . . . Max Security . | . . . . . . . . . . . . . Squads Dispatched 12 | . 2 . 3 . . . 4 . . . . 3 Investigation 2 | . 1 . 1 . . . . . . . . . Extermination . | . . . . . . . . . . . . . Reinforcement 5 | . 1 . 2 . . . 1 . . . . 1 Assault 2 | . . . . . . . . . . . . 2 Garrison 3 | . . . . . . . 3 . . . . . Intercept . | . . . . . . . . . . . . . Searches Triggered . | . . . . . . . . . . . . . Construction Impeded . | . . . . . . . . . . . . . Haulers Reinforced . | . . . . . . . . . . . . . Active Scanning Responses . | . . . . . . . . . . . . . Cargo Convoy Interrupts . | . . . . . . . . . . . . . Stealth | -11 -10 -10 -9 -9 -9 -8 -8 -7 -7 -7 -7 -7 --------- Run | Jun Mat Min Mat Min Exi Min Mat Fac Was Fac Gar Fac Distress Signals 9 | . . . 7 . . . 2 . . . . . Communications Jammed . | . . . . . . . . . . . . . Distress Signals . | . . . . . . . . . . . . . Times Spotted 141 | . 22 1 40 6 . 3 36 . 2 . 20 11 Peak Tracking Total 7 | . 4 . 6 3 . 3 7 . 1 . 3 7 Tactical Retreats 5 | . 2 . . . . 1 2 . . . . . Traps | -11 -10 -10 -9 -9 -9 -8 -8 -7 -7 -7 -7 -7 ------- Run | Jun Mat Min Mat Min Exi Min Mat Fac Was Fac Gar Fac Traps Triggered 5 | . 1 . 1 . . . . 1 . . 2 . Indirectly . | . . . . . . . . . . . . . Trap Hack Attempts . | . . . . . . . . . . . . . Triggered . | . . . . . . . . . . . . . Disarmed . | . . . . . . . . . . . . . Reprogrammed . | . . . . . . . . . . . . . Reused . | . . . . . . . . . . . . . Traps Extracted . | . . . . . . . . . . . . . Installed . | . . . . . . . . . . . . . Triggered . | . . . . . . . . . . . . . Machines | -11 -10 -10 -9 -9 -9 -8 -8 -7 -7 -7 -7 -7 ---------- Run | Jun Mat Min Mat Min Exi Min Mat Fac Was Fac Gar Fac Machines Disabled 21 | . 1 . 1 . . . 6 . . . 13 . Max in Single Turn 3 | . 1 . . . . . 3 . . . 1 . Garrison Relay 5 | . . . . . . . . . . . 5 . Machines Repaired . | . . . . . . . . . . . . . Machines Sabotaged . | . . . . . . . . . . . . . Overloaded Fab Kills . | . . . . . . . . . . . . . Hacking | -11 -10 -10 -9 -9 -9 -8 -8 -7 -7 -7 -7 -7 --------- Run | Jun Mat Min Mat Min Exi Min Mat Fac Was Fac Gar Fac Machines Accessed 32 | . 8 . 10 . 4 . 2 . . 2 4 2 Terminals 26 | . 7 . 10 . . . 2 . . 1 4 2 Fabricators . | . . . . . . . . . . . . . Repair Stations . | . . . . . . . . . . . . . Recycling Units 1 | . 1 . . . . . . . . . . . Scanalyzers . | . . . . . . . . . . . . . Garrison Access 1 | . . . . . . . . . . 1 . . Total Hacks 103 | . 23 . 35 . 27 . 6 . . 3 6 3 Successful 60 | . 13 . 13 . 27 . 3 . . 1 3 . Failed 43 | . 10 . 22 . . . 3 . . 2 3 3 Catastrophic 7 | . 1 . 4 . . . . . . . . 2 Database Lockouts . | . . . . . . . . . . . . . Manual 48 | . 21 . 21 . 1 . 1 . . 1 . 3 Terminals 73 | . 22 . 35 . . . 6 . . 1 6 3 Fabricators . | . . . . . . . . . . . . . Repair Stations . | . . . . . . . . . . . . . Recycling Units 1 | . 1 . . . . . . . . . . . Scanalyzers . | . . . . . . . . . . . . . Garrison Access 2 | . . . . . . . . . . 2 . . Terminal Hacks 47 | . 4 . 10 . 27 . 3 . . . 3 . Record 26 | . . . . . 26 . . . . . . . Prototype ID Bank 1 | . . . 1 . . . . . . . . . Emergency Access Points 1 | . . . . . . . . . . . 1 . Terminal Index 2 | . 1 . 1 . . . . . . . . . Alert Level 4 | . 1 . 3 . . . . . . . . . Unreport Threat 6 | . 1 . 3 . . . 2 . . . . . Dispatch Records 1 | . . . . . . . 1 . . . . . Patrol Status 1 | . 1 . . . . . . . . . . . Reinforcement Status 1 | . . . 1 . . . . . . . . . Recall Reinforcements 1 | . . . 1 . . . . . . . . . Patrol Navigation 1 | . . . . . . . . . . . 1 . Security Stations 1 | . . . . . . . . . . . 1 . EX-Prototype ID Bank 1 | . . . . . 1 . . . . . . . Fabricator Hacks . | . . . . . . . . . . . . . Repair Station Hacks . | . . . . . . . . . . . . . Recycling Unit Hacks 1 | . 1 . . . . . . . . . . . Report Inventory 1 | . 1 . . . . . . . . . . . Scanalyzer . | . . . . . . . . . . . . . Garrison Access Hacks 1 | . . . . . . . . . . 1 . . Unlock Access 1 | . . . . . . . . . . 1 . . Unauthorized Hacks 11 | . 8 . 3 . . . . . . . . . Terminals 11 | . 8 . 3 . . . . . . . . . Botnet 9 | . 7 . 2 . . . . . . . . . Operators 2 | . 1 . 1 . . . . . . . . . Fabricators . | . . . . . . . . . . . . . Repair Stations . | . . . . . . . . . . . . . Recycling Units . | . . . . . . . . . . . . . Scanalyzers . | . . . . . . . . . . . . . Garrison Access . | . . . . . . . . . . . . . Data Cores Recovered . | . . . . . . . . . . . . . Used . | . . . . . . . . . . . . . Hacking Detections 25 | . 7 . 10 . . . 2 . . 1 3 2 Full Trace Events 1 | . 1 . . . . . . . . . . . Feedback Events . | . . . . . . . . . . . . . Feedback Blocked . | . . . . . . . . . . . . . Robot Schematics Acquired . | . . . . . . . . . . . . . Robots Built . | . . . . . . . . . . . . . Authchips . | . . . . . . . . . . . . . Time . | . . . . . . . . . . . . . Total Robot Build Rating . | . . . . . . . . . . . . . Part Schematics Acquired . | . . . . . . . . . . . . . Parts Built . | . . . . . . . . . . . . . Authchips . | . . . . . . . . . . . . . Time . | . . . . . . . . . . . . . Total Part Build Rating . | . . . . . . . . . . . . . Parts Repaired . | . . . . . . . . . . . . . Time . | . . . . . . . . . . . . . Parts Recycled . | . . . . . . . . . . . . . Recycled Matter . | . . . . . . . . . . . . . Retrieved Matter . | . . . . . . . . . . . . . Retrieved Components . | . . . . . . . . . . . . . Parts Scanalyzed . | . . . . . . . . . . . . . Part Schematics Acquired . | . . . . . . . . . . . . . Parts Damaged . | . . . . . . . . . . . . . Bothacking | -11 -10 -10 -9 -9 -9 -8 -8 -7 -7 -7 -7 -7 ------------ Run | Jun Mat Min Mat Min Exi Min Mat Fac Was Fac Gar Fac Used RIF Installer 1 | . . . . . . . . . . . 1 . Robots Hacked . | . . . . . . . . . . . . . Non-combat . | . . . . . . . . . . . . . Combat . | . . . . . . . . . . . . . Robot Hacks Applied . | . . . . . . . . . . . . . Relay Couplers Released 22 | . . . . . . . . . . . 22 . Machine Destruction 22 | . . . . . . . . . . . 22 . Attached 2 | . . . . . . . . . . . 2 . Fabnet Peak Effective % . | . . . . . . . . . . . . . Robots Rewired . | . . . . . . . . . . . . . Allies Hacked 1 | . . . . . . . . . . . 1 . Hacks Repelled . | . . . . . . . . . . . . . Allies | -11 -10 -10 -9 -9 -9 -8 -8 -7 -7 -7 -7 -7 -------- Run | Jun Mat Min Mat Min Exi Min Mat Fac Was Fac Gar Fac Total Allies 22 | . . 2 . 1 . . . . 19 . . . Largest Group 19 | . . 2 2 1 . . . . 19 15 15 9 Highest-Rated Group 465 | . . 32 32 31 . . . . 465 409 409 264 Highest-Rated Ally 35 | . . 16 16 31 . . . . 35 35 35 35 Total Orders . | . . . . . . . . . . . . . Ally Attacks 362 | . . 3 28 7 . . . . 101 . 161 62 Total Damage 9391 | . . 45 142 105 . . . . 3338 . 4581 1180 Kills 59 | . . 1 1 1 . . . . 9 . 38 9 Allies Corrupted . | . . . . . . . . . . . . . Allies Melted . | . . . . . . . . . . . . . Intel | -11 -10 -10 -9 -9 -9 -8 -8 -7 -7 -7 -7 -7 ------- Run | Jun Mat Min Mat Min Exi Min Mat Fac Was Fac Gar Fac Robot Analysis Total . | . . . . . . . . . . . . . Derelict Logs Recovered 1 | . . . . 1 . . . . . . . . Drone Launches . | . . . . . . . . . . . . . Drone Recoveries . | . . . . . . . . . . . . . Exploration | -11 -10 -10 -9 -9 -9 -8 -8 -7 -7 -7 -7 -7 ------------- Run | Jun Mat Min Mat Min Exi Min Mat Fac Was Fac Gar Fac Turns Passed 17968 | 73 1866 2947 4273 651 1129 1113 2449 104 405 154 2282 522 Spaces Moved 8550 | 52 964 988 2029 435 820 337 915 64 239 96 1308 303 Core 8 | 7 . . . . . . 1 . . . . . Treads 3599 | . 484 988 78 . . . 39 64 239 96 1308 303 Legs 73 | 45 28 . . . . . . . . . . . Wheels 4867 | . 452 . 1951 435 820 337 872 . . . . . Hover . | . . . . . . . . . . . . . Flight 3 | . . . . . . . 3 . . . . . Fastest Speed 50 | 50 110 240 98 120 135 215 145 145 145 152 152 165 Average Speed 165 | 110 175 240 115 130 135 215 226 147 154 152 158 165 Slowest Speed 1750 | 120 260 240 240 175 135 215 1750 225 225 152 165 165 Overloaded Moves . | . . . . . . . . . . . . . Propulsion Burnouts . | . . . . . . . . . . . . . Robots Hopped . | . . . . . . . . . . . . . Cave-ins Triggered . | . . . . . . . . . . . . . Exploration Rate (%) 57 | 3 97 97 88 78 90 43 65 2 80 3 96 9 Regions Visited 12 Branch Regions 4 Pre-discovered Areas 1 | . . 1 . . . . . . . . . . Known Exits Taken 7 | . . 1 1 1 1 1 1 . . 1 . . Unknown Exits Taken 2 | 1 1 . . . . . . . . . . . Scrap Searched 1 | . . . . 1 . . . . . . . . Spaces Dug 17 | . . . 1 . . 12 1 . . . 2 1 Terrain Destroyed 48 | . . . 1 10 . 17 14 . 1 . 2 3 Melee 1 | . . . . . . . 1 . . . . . Projectile 24 | . . . 1 . . 17 . . 1 . 2 3 AOE 23 | . . . . 10 . . 13 . . . . . Terrain Rammed . | . . . . . . . . . . . . . Walls Destroyed . | . . . . . . . . . . . . . Machines Disabled . | . . . . . . . . . . . . . Actions | -11 -10 -10 -9 -9 -9 -8 -8 -7 -7 -7 -7 -7 --------- Run | Jun Mat Min Mat Min Exi Min Mat Fac Was Fac Gar Fac Total 11926 | 65 1069 1563 3826 497 847 699 1160 73 279 104 1433 311 Wait 2710 | . 44 572 1602 39 . 337 62 3 11 9 31 . Move 8539 | 51 963 987 2028 434 819 336 914 64 238 95 1307 303 Hop . | . . . . . . . . . . . . . Pick Up 140 | 8 16 . 47 5 8 2 35 . 8 . 11 . Fast Attach 26 | 4 . . 2 . 1 . 8 3 2 . 6 . Attach 48 | 2 3 . 11 5 2 1 17 . 1 . 6 . Detach . | . . . . . . . . . . . . . Swap 62 | . 5 4 26 2 3 2 12 2 3 . 3 . Drop 118 | . 2 . 39 . 14 1 29 1 15 . 16 1 Fire 277 | . 36 . 70 12 . 20 82 . 1 . 49 7 Melee 5 | . . . . . . . 1 . . . 4 . Ram 1 | . . . 1 . . . . . . . . . Kick . | . . . . . . . . . . . . . Crush . | . . . . . . . . . . . . . Escape Stasis . | . . . . . . . . . . . . . Rewire . | . . . . . . . . . . . . . Trap . | . . . . . . . . . . . . . Miscellaneous . | . . . . . . . . . . . . . Route ------- -11/Junkyard -10/Materials (discovered 4 exits: *Mat x3 / [*Min]) -10/Mines (discovered 2 exits: *Mat x2) -9/Materials (discovered 3 exits: *Mat / *Min / [*Sto]) -9/Mines (discovered 3 exits: *Mat / *Exi / [*Zio]) -9/Exiles (discovered 2 exits: *Min x2) -8/Mines -8/Materials (discovered 2 exits: *Fac x2) -7/Factory -7/Waste -7/Factory -7/Garrison (discovered 3 exits: *Fac x3) -7/Factory History --------- Turn | Location | Event 17 | -11/Junkyard | Discovered new exit (range 15) 74 | -11/Junkyard | Entered Materials 193 | -10/Materials | Discovered new exit (range 16) 307 | -10/Materials | Build established: Mutant 449 | -10/Materials | Discovered new exit (range 12) 506 | -10/Materials | Discovered new exit (range 13) 599 | -10/Materials | Discovered new exit (range 15) 1940 | -10/Materials | Entered Mines 1941 | -10/Mines | Learned location of Storage (-9) 2216 | -10/Mines | Discovered new exit (range 9) 2709 | -10/Mines | Assisted by bots powering up and referring to "LRC-V3" 2769 | -10/Mines | Core integrity fell below 50% 2769 | -10/Mines | Allies destroyed YI-UF0 2783 | -10/Mines | Discovered new exit (range 10) 2821 | -10/Mines | Identified exit to Materials 4887 | -10/Mines | Entered Materials 4887 | -9/Materials | Accompanied by 2 allies 4887 | -9/Materials | Evolved 2 slots: Propulsion x1, Utility x1 5215 | -9/Materials | Discovered new exit (range 12) 5783 | -9/Materials | Discovered new exit (range 3) 6332 | -9/Materials | Identified exit to Materials 8919 | -9/Materials | Discovered new exit (range 13) 9159 | -9/Materials | Identified exit to Mines 9160 | -9/Materials | Entered Mines 9164 | -9/Mines | Assembled infested the area 9169 | -9/Mines | Assisted by a Guerilla fighting off Assembled 9401 | -9/Mines | Core integrity fell below 50% 9440 | -9/Mines | Lost 5 parts (3n2w) 9447 | -9/Mines | Received a Mining Laser from a helpful Derelict 9486 | -9/Mines | Received a Rocket Launcher from a helpful Derelict 9515 | -9/Mines | A Derelict revealed a hidden shortcut to a safe place 9651 | -9/Mines | Discovered exit to Materials (range 5) 9722 | -9/Mines | Identified exit to Exiles 9805 | -9/Mines | Deemed a non-threat by the Exiles lab entrance 9811 | -9/Mines | Entered Exiles 9838 | -9/Exiles | Discovered new exit (range 14) 9855 | -9/Exiles | Identified exit to Mines 9890 | -9/Exiles | Met 8R-AWN 9919 | -9/Exiles | Met EX-HEX 9959 | -9/Exiles | Met EX-BIN 9988 | -9/Exiles | Aligned with FarCom system 9990 | -9/Exiles | Given EX-Vault access code 10081 | -9/Exiles | Opened EX-Vault 10152 | -9/Exiles | Found Army-in-a-Box 10182 | -9/Exiles | Warned to stay clear of 0b10 Research branches 10220 | -9/Exiles | Met EX-DEC 10335 | -9/Exiles | Discovered exit to Mines (range 14) 10440 | -9/Exiles | Visited The Gauntlet 10940 | -9/Exiles | Left Exiles lab with Army-in-a-Box 10940 | -9/Exiles | Entered Mines 10950 | -8/Mines | Core integrity fell below 20% 11241 | -8/Mines | Build established: Scavenger-Mutant 11638 | -8/Mines | Build established: Scavenger-Skirmisher 11938 | -8/Mines | Build established: Scavenger-Mutant 11987 | -8/Mines | Discovered exit to Materials (range 3) 12053 | -8/Mines | Entered Materials 12053 | -8/Materials | Evolved 2 slots: Utility x2 12708 | -8/Materials | Garrison activated, responded to threat 13635 | -8/Materials | Discovered new exit (range 9) 13650 | -8/Materials | Identified exit to Factory 14051 | -8/Materials | Core integrity fell below 50% 14111 | -8/Materials | Lost 6 parts (1p3n2w) 14306 | -8/Materials | Build established: Mutant 14381 | -8/Materials | Discovered exit to Factory (range 6) 14502 | -8/Materials | Entered Factory 14502 | -7/Factory | Evolved 2 slots: Utility x2 14606 | -7/Factory | Sucked down chute 14606 | -7/Factory | Entered Waste 14635 | -7/Waste | Warlord forces began an assault 14693 | -7/Waste | Spotted C-40 Crusher 14693 | -7/Waste | Spotted C-40 Crusher 14695 | -7/Waste | Allies destroyed C-40 Crusher 14701 | -7/Waste | Allies destroyed C-40 Crusher 14706 | -7/Waste | Spotted C-40 Crusher 14711 | -7/Waste | Allies destroyed C-40 Crusher 14866 | -7/Waste | Spotted C-40 Crusher 14870 | -7/Waste | Allies destroyed C-40 Crusher 14980 | -7/Waste | Discovered new exit (range 16) 14994 | -7/Waste | Build established: Infiltrator-Skirmisher 15004 | -7/Waste | Identified exit to Factory 15011 | -7/Waste | Entered Factory 15011 | -7/Factory | Accompanied by 15 allies 15155 | -7/Factory | Identified exit to Garrison 15165 | -7/Factory | Entered Garrison 15165 | -7/Garrison | Accompanied by 15 allies 15197 | -7/Garrison | Learned Factory security intel 15212 | -7/Garrison | Triggered checkpoint 15235 | -7/Garrison | Garrison Relay disabled 15326 | -7/Garrison | Triggered checkpoint 15326 | -7/Garrison | Triggered checkpoint 15381 | -7/Garrison | Spotted B-75 Beast 15381 | -7/Garrison | Spotted B-75 Beast 15389 | -7/Garrison | Allies destroyed B-75 Beast 15398 | -7/Garrison | Allies destroyed B-75 Beast 15433 | -7/Garrison | Discovered new exit (range 7) 15439 | -7/Garrison | Identified exit to Factory 15447 | -7/Garrison | Heavy support dispatched to Factory 15542 | -7/Garrison | Triggered checkpoint 15573 | -7/Garrison | Garrison Relay disabled 15664 | -7/Garrison | Triggered checkpoint 15706 | -7/Garrison | Triggered checkpoint 15788 | -7/Garrison | Triggered checkpoint 15885 | -7/Garrison | Discovered exit to Factory (range 11) 15956 | -7/Garrison | Garrison Relay disabled 16123 | -7/Garrison | Discovered exit to Factory (range 14) 16210 | -7/Garrison | Garrison Relay disabled 16216 | -7/Garrison | Triggered checkpoint 16312 | -7/Garrison | Found Prototype Device 16313 | -7/Garrison | Identified Active Sensor Suite 16371 | -7/Garrison | H-XX Assembler disabled 16580 | -7/Garrison | Triggered checkpoint 16581 | -7/Garrison | Garrison Relay disabled 16586 | -7/Garrison | Build established: Mutant 16999 | -7/Garrison | Build established: Skirmisher 17022 | -7/Garrison | Installed Relay Interface Framework 17366 | -7/Garrison | Build established: Mutant 17447 | -7/Garrison | Entered Factory 17447 | -7/Factory | Accompanied by 9 allies 17847 | -7/Factory | First assault squad dispatched 17969 | -7/Factory | Self-destructed Last Messages --------------- 17852_ ALERT: Cargo convoy en route, clear transfer corridor. 17895_ System corrupted: Component data lost. 17934_ C-30 ARC bursts open, deploying its payload. 17934_ G-50 Soldier unfolds itself. 17934_ G-47 Trooper unfolds itself. 17934_ I-36 Angel unfolds itself. 17936_ Destroyed Com. Battery. 17936_ G-47 Trooper suffers critical hit (Burn). 17937_ G-47 Trooper destroyed. 17942_ I-36 Angel destroyed. 17945_ G-50 Soldier destroyed. 17948_ Acquired 9 matter. 17948_ G-47 Trooper suffers critical hit (Burn). 17948_ G-47 Trooper destroyed. 17948_ U-05 Engineer builds a Wall. 17949_ Acquired 27 matter. 17950_ ZB-B0D(m) repairs Fission Core. 17951_ U-05 Engineer builds a Door. 17962_ Acquired 9 matter. 17963_ U-05 Engineer builds a Wall. Map ----- +----------------------------------------------------+ | ?????????????????????????????????????????????????? | | ?????????????????????????????????????????????????? | | ?????????????????????????????????????????????????? | | ?????????????????????????????????????????????????? | | ?????????????????????????????????????????????????? | | ?????????????????????????????????????????????????? | | ?????????????????????????????????????????????????? | | ?????????????????????????????????????????????????? | | ?????????????????????????????????????????????????? | | ?????????????????????????????????????????????????? | | ?????????????????????????????????????????????????? | | ?????????????????????????????????????????????????? | | ?????????????????????????????????????????????????? | | ?????????????????????????????????????????????????? | | ?????????????????????????????????????????????????? | | ?????????????????????????????????????????????????? | | ?????????????????????????????????????????????????? | | ?????????????????????????????????????????????????? | | ????????????????????????????????i????????????????? | | ???????????????????????????????????g?????????????? | | ?????????????????????????????????g???????????????? | | ???????????????#?###?????????????????????????????? | | ???????????????# """??????????g?????????????????? | | ???????????????# "R" ######?????????????????????? | | ???????????????# " " #%==###u#??????????????????? | | ???????????????# *+=%@%m% #??????????????????? | | ???????????????# #= %#####??????????????????? | | ???????????????# ??##u#########???????????????? | | ??????????# ############ # #???????????????? | | ??????????# w+ #???????????????? | | ??????????# ######/##### # #???????????????? | | ???????????????? ??# # #???????????????? | | ?????????????? # #? #???????????????? | | ?????????????# # #? #???????????????? | | ?????????????# # #?? #???????????????? | | ?????######+############ #??? #???????????????? | | ?????# ???????# #??? #???????????????? | | ?????# ??????# #????####???????????????? | | ?????# ?###### ##########??????????????? | | ?????# + ??????????? | | ?????# # ??????????? | | ?????# / """ """????????????? | | ?????# # """ ????????????????? | | ?????# # """?????????????????? | | ?????# ?# #### ????????????? | | ?????# ?# #??? ??????????????? | | ?????# * ??# #??? ??????????????? | | ##???# ??# #??? ??????????????? | | ??##########???# #??? ?????????????? | | """#???????????###+#+#### """" "??????????????? | +----------------------------------------------------+ Best States ------------- Heat Dissipation 34 Energy Generation 18 Energy Capacity 440 Matter Stores 500 Matter Capacity 500 Sight Range 16 Robot Scan Range 14 Terrain Scan Range 16 Terrain Scan Density 85 Jamming Range 16 Additional Mass Support 9 Armor Coverage 450 Evasion (%) 50 Targeting Accuracy 20 Core Analysis 6 Recoil Reduction 3 Relay Coupler Types 1 Relay Coupler Value 21 Item Schematics ----------------- None Robot Schematics ------------------ None Fabricated ------------ Nothing Alien Tech Used ----------------- None Achievements -------------- None Challenges ------------ None Game ------ Seed WeaponBackupPrototype Manual? 0 Play Time 02:40:00 Cumulative 88.6 hours Start 2023.03.21 @ 03:21:05 End 2023.03.23 @ 18:40:44 Sessions 2 Manual Loads 0 Difficulty Rogue Special Mode None Game No. 23 Rogue 23 Adventurer 0 Explorer 0 Win Type - Total 3 Types 3/0/0/0/0/0/0/0/0 Lore% 28 Gallery% 44 Achievement% 39 Wizard Run 0 Options --------- ASCII 0 Keyboard 0 Movement Mouse Keybinds 0 Fullscreen 2 Font 16/SmallcapsGlow Map View 75x55 Tactical HUD 1 Map Filters NONE Filters NONE Steam X RUN: 6a9661e2-e0dd-4e46-9d75-c05084af05a9